bitfinex/quotes_BTCUSD_20240731
["timestamp","ask_amount","ask_price","bid_price","bid_amount"]
[1722448924696,0.07476412,66770.0,66758.0,0.149794]
[1722448924697,0.001,66770.0,66758.0,0.14955172]
[1722448924891,0.0005,66789.0,66746.0,0.01]
[1722448924892,0.001,66766.0,66759.0,0.17445401]
[1722448925098,0.299501,66778.0,66761.0,0.14955172]
[1722448925099,0.001,66778.0,66761.0,0.14955172]
[1722448925316,0.0005,66789.0,66762.0,0.03290249]
[1722448925317,0.001,66775.0,66762.0,0.03290249]
[1722448925534,0.07476412,66766.0,66763.0,0.1500517]
[1722448925746,0.001,66772.0,66764.0,0.00299544]
[1722448925949,0.001,66772.0,66766.0,0.299552]
[1722448926148,0.0234912,66774.0,66773.0,0.449283]
[1722448926354,0.001,66775.0,66773.0,0.14955172]
[1722448926621,0.299952,66789.0,66762.0,0.172784]
[1722448926622,0.001,66771.0,66762.0,0.172784]
[1722448926834,0.001,66774.0,66763.0,0.19834212]
[1722448927047,0.001,66766.0,66765.0,0.149779]
[1722448927468,0.001,66766.0,66765.0,0.62188772]
[1722448927689,0.001,66766.0,66765.0,1.28579199]
[1722448927895,0.001,66781.0,66770.0,0.299531]
[1722448928006,0.001,66775.0,66774.0,0.299517]
[1722448928221,0.0005,66789.0,66783.0,0.149736]
[1722448928465,0.0005,66789.0,66784.0,0.17255172]
[1722448928466,0.0015,66789.0,66784.0,0.17255172]
[1722448928685,0.001,66778.0,66765.0,0.01]
[1722448928885,0.07476412,66777.0,66772.0,0.14955172]
[1722448929091,0.07476412,66775.0,66766.0,0.0015542]
[1722448929290,0.07476412,66775.0,66745.0,0.0159597]
[1722448929291,0.08234053,66775.0,66767.0,0.14955172]
[1722448929503,0.001,66771.0,66767.0,0.14955172]
[1722448929709,0.001,66785.0,66768.0,0.00454952]
[1722448929828,0.001,66785.0,66773.0,0.299521]
[1722448930028,0.001,66786.0,66774.0,0.14955172]
[1722448930318,0.001,66786.0,66777.0,0.299501]
[1722448930521,0.001,66786.0,66774.0,0.15855172]
[1722448930522,0.0005,66789.0,66788.0,0.149727]
[1722448930679,0.0015,66789.0,66788.0,0.14955172]
[1722448930881,0.001,66782.0,66774.0,0.43512047]
[1722448931086,0.001,66782.0,66775.0,0.17255172]
[1722448931259,0.07576412,66785.0,66775.0,0.17255172]
[1722448931260,0.001,66778.0,66776.0,0.1]
[1722448931479,0.001,66780.0,66775.0,0.023]
[1722448931685,0.001,66780.0,66752.0,0.399615]
[1722448931686,0.001,66768.0,66764.0,0.149781]
[1722448931861,0.001,66767.0,66765.0,0.15110592]
[1722448932065,0.001,66767.0,66766.0,0.449329]
[1722448932262,0.07476412,66785.0,66766.0,0.449329]
[1722448932263,0.001,66777.0,66776.0,0.149754]
[1722448932511,0.001,66782.0,66781.0,0.149743]
[1722448932697,0.0005,66789.0,66781.0,0.14955172]
[1722448932698,0.001,66788.0,66781.0,0.14955172]
[1722448932898,0.001,66788.0,66782.0,0.14955172]
[1722448933256,0.0005,66789.0,66782.0,0.14955172]
[1722448933461,0.0005,66789.0,66764.0,0.03004]
[1722448933462,0.001,66771.0,66764.0,0.03004]
[1722448933663,0.001,66771.0,66765.0,0.14955172]
[1722448933875,0.07476412,66784.0,66766.0,0.00299523]
[1722448933876,0.001,66769.0,66766.0,0.00299523]
[1722448934106,0.150776,66766.0,66765.0,0.00990962]
[1722448934320,0.001,66764.0,66756.0,0.0015542]
[1722448934539,0.07476412,66763.0,66756.0,0.15110592]
[1722448934744,0.150797,66757.0,66756.0,0.0015542]
[1722448934922,0.001,66753.0,66745.0,0.149823]
[1722448935134,0.001,66753.0,66746.0,0.14955172]
[1722448935354,0.001,66753.0,66747.0,0.0015542]
[1722448935355,0.07576412,66748.0,66747.0,0.0015542]
[1722448935571,0.52521512,66748.0,66747.0,0.0015542]
[1722448935791,0.52521512,66748.0,66728.0,0.000913]
[1722448935792,0.299675,66739.0,66728.0,0.000913]
[1722448936010,0.22431584,66748.0,66729.0,0.14955172]
[1722448936011,0.001,66731.0,66729.0,0.14955172]
[1722448936212,0.001,66729.0,66728.0,0.000913]
[1722448936413,0.750297,66729.0,66728.0,0.000913]
[1722448936818,0.001,66729.0,66728.0,0.000913]
[1722448937193,0.309612,66753.0,66728.0,0.000913]
[1722448937194,0.001,66733.0,66728.0,0.000913]
[1722448937397,0.77380574,66729.0,66728.0,0.000913]
[1722448937755,0.17436774,66729.0,66728.0,0.000913]
[1722448938400,0.02350874,66729.0,66728.0,0.000913]
[1722448938598,0.11,66755.0,66732.0,0.01]
[1722448938846,0.07476412,66739.0,66728.0,0.001913]
[1722448939111,0.149859,66729.0,66728.0,0.000913]
[1722448939323,0.14955172,66739.0,66728.0,0.000913]
[1722448939324,0.299708,66732.0,66728.0,0.000913]
[1722448939545,0.450578,66729.0,66728.0,0.000913]
[1722448939742,0.150859,66729.0,66728.0,0.000913]
[1722448939857,0.750297,66729.0,66728.0,0.001913]
[1722448940063,1.349735,66729.0,66728.0,0.001913]
[1722448940255,1.050016,66729.0,66728.0,0.001913]
[1722448940887,0.001,66729.0,66728.0,0.011913]
[1722448941287,0.749297,66729.0,66728.0,0.000913]
[1722448941494,0.8541971,66729.0,66728.0,0.001913]
[1722448941617,0.8541971,66729.0,66728.0,0.000913]
[1722448941618,1.049016,66729.0,66728.0,0.000913]
[1722448941841,0.749297,66729.0,66728.0,0.000913]
[1722448942057,0.750297,66729.0,66728.0,0.001913]
[1722448942256,0.750297,66729.0,66728.0,0.000913]
[1722448942463,0.8253267,66729.0,66728.0,0.000913]
[1722448942662,1.051016,66729.0,66728.0,0.001913]
[1722448942877,1.049016,66729.0,66728.0,0.000913]
[1722448943060,1.19856772,66729.0,66728.0,0.000913]
[1722448943274,0.749297,66729.0,66728.0,0.000913]
[1722448943476,0.44858472,66755.0,66730.0,0.01]
[1722448943705,0.44858472,66755.0,66740.0,0.02]
[1722448943706,0.149818,66748.0,66740.0,0.02]
[1722448943904,0.07476412,66770.0,66746.0,0.0215542]
[1722448944076,0.299589,66758.0,66746.0,0.0215542]
[1722448944280,0.149819,66747.0,66746.0,0.0115542]
[1722448944490,0.149819,66747.0,66746.0,0.01]
[1722448944692,0.00083,66759.0,66741.0,0.01]
[1722448944893,0.749152,66742.0,66741.0,0.01]
[1722448945186,0.749152,66742.0,66729.0,0.14955172]
[1722448945187,0.001,66748.0,66732.0,0.0115542]
[1722448945408,0.001,66748.0,66732.0,0.0015542]
[1722448945409,0.449551,66733.0,66732.0,0.0015542]
[1722448945613,0.07476412,66745.0,66728.0,0.000913]
[1722448945614,0.299719,66729.0,66728.0,0.000913]
[1722448945812,0.449578,66729.0,66728.0,0.000913]
[1722448946017,0.749297,66729.0,66728.0,0.000913]
[1722448946420,0.001,66742.0,66728.0,0.000913]
[1722448946621,0.749297,66729.0,66728.0,0.000913]
[1722448946860,1.049016,66729.0,66728.0,0.000913]
[1722448947061,0.149858,66730.0,66728.0,0.000913]
[1722448947176,0.001,66742.0,66728.0,0.000913]
[1722448947177,0.001,66742.0,66729.0,0.01]
[1722448947372,0.001,66742.0,66729.0,0.02]
[1722448947619,0.299677,66739.0,66729.0,0.02]
[1722448947818,0.149856,66731.0,66729.0,0.02]
[1722448948032,0.299677,66739.0,66731.0,0.02]
[1722448948178,0.299677,66739.0,66728.0,0.000913]
[1722448948179,0.01,66766.0,66741.0,0.02]
[1722448948395,0.59813644,66756.0,66741.0,0.02]
[1722448948601,0.59813644,66756.0,66732.0,0.14955172]
[1722448948602,0.299591,66758.0,66748.0,0.149815]
[1722448948832,0.07476412,66770.0,66748.0,0.02]
[1722448948833,0.449443,66749.0,66748.0,0.02]
[1722448949007,0.07476412,66770.0,66729.0,0.001]
[1722448949008,0.449464,66746.0,66745.0,0.02]
[1722448949226,0.149809,66752.0,66745.0,0.02]
[1722448949429,0.07476412,66770.0,66752.0,0.02]
[1722448949632,0.149802,66755.0,66752.0,0.02]
[1722448949877,0.014,66756.0,66752.0,0.02]
[1722448950028,0.149802,66755.0,66752.0,0.02]
[1722448950231,0.014,66756.0,66752.0,0.02]
[1722448950232,0.149806,66753.0,66752.0,0.02]
[1722448950461,0.149806,66753.0,66728.0,0.001913]
[1722448950462,0.0163806,66753.0,66744.0,0.02]
[1722448950665,0.299637,66748.0,66740.0,0.02]
[1722448950848,0.149828,66743.0,66742.0,0.0015542]
[1722448951044,0.449484,66743.0,66742.0,0.0015542]
[1722448951323,0.449491,66742.0,66739.0,0.02]
[1722448951485,0.14983,66742.0,66739.0,0.02]
[1722448951662,0.15851113,66755.0,66741.0,0.021]
[1722448951663,0.00895941,66755.0,66741.0,0.021]
[1722448951868,0.755072,66749.0,66748.0,0.001]
[1722448952066,0.155814,66749.0,66748.0,0.001]
[1722448952266,0.749085,66748.0,66747.0,0.01]
[1722448952474,0.149815,66749.0,66747.0,0.02]
[1722448952672,0.07476412,66761.0,66747.0,0.02]
[1722448952673,0.01838941,66759.0,66748.0,0.0015542]
[1722448953049,0.149814,66749.0,66748.0,0.0015542]
[1722448953282,0.149814,66749.0,66747.0,0.01]
[1722448953283,0.299635,66748.0,66743.0,0.02]
[1722448953484,0.449478,66744.0,66743.0,0.02]
[1722448953680,0.14955172,66758.0,66748.0,0.001]
[1722448953681,0.455443,66749.0,66748.0,0.001]
[1722448953815,0.755072,66749.0,66748.0,0.001]
[1722448954011,0.455443,66749.0,66748.0,0.001]
[1722448954237,0.755072,66749.0,66748.0,0.001]
[1722448954679,0.755072,66749.0,66737.0,0.02]
[1722448954680,0.0990096,66749.0,66737.0,0.02]
[1722448954984,0.149839,66738.0,66737.0,0.02]
[1722448955282,0.07476412,66756.0,66719.0,0.0015542]
[1722448955283,0.299692,66735.0,66734.0,0.02]
[1722448955503,0.149836,66740.0,66737.0,0.02]
[1722448955710,0.449518,66738.0,66737.0,0.02]
[1722448955857,0.50256282,66754.0,66730.0,0.0015542]
[1722448955858,0.749275,66731.0,66730.0,0.0015542]
[1722448956062,0.599438,66729.0,66728.0,0.000913]
[1722448956261,0.149859,66729.0,66728.0,0.000913]
[1722448956466,0.07476412,66739.0,66728.0,0.000913]
[1722448956783,0.449578,66729.0,66728.0,0.000913]
[1722448956982,0.07476412,66739.0,66728.0,0.000913]
[1722448957185,0.149859,66729.0,66728.0,0.000913]
[1722448957567,0.449578,66729.0,66728.0,0.000913]
[1722448957767,0.11220573,66739.0,66728.0,0.000913]
[1722448957768,0.299712,66731.0,66728.0,0.000913]
[1722448957971,0.0235076,66729.0,66728.0,0.001913]
[1722448958170,0.0235076,66729.0,66728.0,0.471499]
[1722448958374,0.0235076,66729.0,66728.0,0.001913]
[1722448958573,1.0725236,66729.0,66728.0,0.001913]
[1722448958796,1.049016,66729.0,66728.0,0.001913]
[1722448958998,1.19856772,66729.0,66728.0,0.001913]
[1722448959218,1.59828672,66729.0,66728.0,0.000913]
[1722448959357,1.72814349,66729.0,66728.0,0.000913]
[1722448959568,1.72914349,66729.0,66728.0,0.000913]
[1722448959762,1.71914349,66729.0,66728.0,0.000913]
[1722448959967,0.24955172,66729.0,66728.0,0.000913]
[1722448960161,0.24955172,66729.0,66728.0,0.150775]
[1722448960162,0.114,66729.0,66728.0,0.150775]
[1722448960367,0.114,66729.0,66728.0,0.000913]
[1722448960368,0.014,66729.0,66728.0,0.000913]
[1722448960579,0.149859,66729.0,66728.0,0.000913]
[1722448960780,0.014,66729.0,66728.0,0.150775]
[1722448960991,0.014,66729.0,66728.0,0.000913]
[1722448961197,0.299675,66739.0,66728.0,0.000913]
[1722448961438,0.449578,66729.0,66728.0,0.000913]
[1722448961635,0.89884872,66729.0,66728.0,0.000913]
[1722448962079,1.19856772,66729.0,66728.0,0.000913]
[1722448962287,1.22207947,66729.0,66728.0,0.000913]
[1722448962417,1.62179847,66729.0,66728.0,0.000913]
[1722448962622,1.77127977,66729.0,66728.0,0.000913]
[1722448962804,1.74776802,66729.0,66728.0,0.000913]
[1722448963247,1.74776802,66729.0,66728.0,1e-06]
[1722448963248,2.06048702,66729.0,66728.0,1e-06]
[1722448963446,2.05748702,66729.0,66728.0,1e-06]
[1722448963651,2.04748702,66729.0,66728.0,1e-06]
[1722448963857,2.06148702,66729.0,66728.0,1e-06]
[1722448964056,2.05748702,66729.0,66728.0,1e-06]
[1722448964474,2.06148702,66729.0,66728.0,1e-06]
[1722448964690,1.61228672,66729.0,66728.0,1e-06]
[1722448965275,1.462735,66729.0,66728.0,1e-06]
[1722448965473,1.61228672,66729.0,66728.0,1e-06]
[1722448965724,1.91200572,66729.0,66728.0,1e-06]
[1722448965928,1.92200572,66729.0,66728.0,1e-06]
[1722448966261,2.0850001,66729.0,66728.0,1e-06]
[1722448966461,1.7712811,66729.0,66728.0,1e-06]
[1722448966749,1.7852811,66729.0,66728.0,1e-06]
[1722448966950,2.0710001,66729.0,66728.0,1e-06]
[1722448967388,2.0950001,66729.0,66728.0,1e-06]
[1722448967564,2.0810001,66729.0,66728.0,1e-06]
[1722448968931,2.0950001,66729.0,66728.0,1e-06]
[1722448969535,1.9315188,66729.0,66728.0,1e-06]
[1722448969799,1.9455188,66729.0,66728.0,1e-06]
[1722448970011,1.9315188,66729.0,66728.0,1e-06]
[1722448970211,2.2312378,66729.0,66728.0,1e-06]
[1722448970370,1.9455188,66729.0,66728.0,1e-06]
[1722448970619,2.0950001,66729.0,66728.0,1e-06]
[1722448970972,2.0850001,66729.0,66728.0,1e-06]
[1722448971172,1.6357998,66729.0,66728.0,1e-06]
[1722448972009,1.08652908,66729.0,66728.0,1e-06]
[1722448972658,1.07252908,66729.0,66728.0,1e-06]
[1722448972870,1.08652908,66729.0,66728.0,1e-06]
[1722448973280,1.07252908,66729.0,66728.0,1e-06]
[1722448973539,1.08652908,66729.0,66728.0,1e-06]
[1722448973764,1.07252908,66729.0,66728.0,1e-06]
[1722448974180,1.17252908,66729.0,66728.0,1e-06]
[1722448975483,1.47224808,66729.0,66728.0,1e-06]
[1722448975701,1.48624808,66729.0,66728.0,1e-06]
[1722448975868,1.163016,66729.0,66728.0,1e-06]
[1722448976134,1.149016,66729.0,66728.0,1e-06]
[1722448976445,1.462735,66729.0,66728.0,1e-06]
[1722448976648,1.448735,66729.0,66728.0,1e-06]
[1722448976771,1.149016,66729.0,66728.0,1e-06]
[1722448976973,1.163846,66729.0,66728.0,1e-06]
[1722448977179,1.149846,66729.0,66728.0,1e-06]
[1722448977386,1.449565,66729.0,66728.0,1e-06]
[1722448977611,1.463565,66729.0,66728.0,1e-06]
[1722448977806,0.299814,66708.0,66705.0,0.01]
[1722448978031,0.449734,66706.0,66705.0,0.14955172]
[1722448978253,0.37453912,66717.0,66691.0,0.0020542]
[1722448978479,0.449707,66710.0,66709.0,0.01]
[1722448979104,0.15038172,66729.0,66719.0,0.01]
[1722448979105,0.00083,66729.0,66719.0,0.01]
[1722448979322,0.00083,66729.0,66723.0,0.01]
[1722448979323,0.149871,66724.0,66723.0,0.01]
[1722448979587,0.01483,66729.0,66723.0,0.01]
[1722448979588,0.00083,66729.0,66728.0,0.01]
[1722448980059,0.150689,66729.0,66728.0,0.01]
[1722448980269,0.150689,66729.0,66723.0,0.14955172]
[1722448980270,0.449586,66728.0,66727.0,0.01]
[1722448980486,0.02433889,66729.0,66728.0,0.01]
[1722448980705,0.47391689,66729.0,66728.0,0.01]
[1722448980958,0.02433889,66729.0,66728.0,0.15955172]
[1722448981163,0.02433889,66729.0,66728.0,0.18255172]
[1722448981370,0.17419789,66729.0,66728.0,0.18255172]
[1722448981577,0.149862,66728.0,66727.0,0.01]
[1722448981792,0.449592,66727.0,66726.0,0.01]
[1722448982005,0.449592,66727.0,66726.0,0.15955172]
[1722448982208,0.02533889,66729.0,66728.0,0.01]
[1722448982428,0.17419789,66729.0,66728.0,0.01]
[1722448982631,0.02433889,66729.0,66728.0,0.01]
[1722448982837,0.02433889,66729.0,66728.0,0.15955172]
[1722448983039,0.17419789,66729.0,66728.0,0.18255172]
[1722448983244,0.02433889,66729.0,66728.0,0.18255172]
[1722448983447,0.02433889,66729.0,66728.0,0.01]
[1722448983448,0.17419789,66729.0,66728.0,0.01]
[1722448983673,0.450408,66729.0,66728.0,0.01]
[1722448983874,0.450408,66729.0,66727.0,0.01]
[1722448983875,0.449586,66728.0,66727.0,0.01]
[1722448984079,0.149862,66728.0,66727.0,0.15955172]
[1722448984280,0.00583,66729.0,66728.0,0.01]
[1722448984673,0.00583,66729.0,66728.0,0.0115542]
[1722448985119,0.00083,66729.0,66728.0,0.30941372]
[1722448985430,0.00083,66729.0,66728.0,0.60913772]
[1722448985634,0.00083,66729.0,66728.0,0.66073099]
[1722448985873,0.00083,66729.0,66728.0,0.36100699]
[1722448986077,0.00083,66729.0,66728.0,0.66073099]
[1722448986280,0.00083,66729.0,66728.0,0.01]
[1722448986453,0.00083,66729.0,66728.0,0.159862]
[1722448986853,0.02433462,66729.0,66728.0,0.15955172]
[1722448987069,0.02433462,66729.0,66728.0,0.33541055]
[1722448987276,0.02433462,66729.0,66728.0,0.18255172]
[1722448987684,0.00083,66729.0,66728.0,0.18255172]
[1722448987880,0.00083,66729.0,66728.0,0.63213772]
[1722448988086,0.00083,66729.0,66728.0,1.02504919]
[1722448988311,0.00083,66729.0,66728.0,0.72532519]
[1722448988497,0.00083,66729.0,66728.0,0.18255172]
[1722448988498,0.00183,66729.0,66728.0,0.18255172]
[1722448988914,0.74673115,66732.0,66731.0,0.01]
[1722448989123,0.07476412,66738.0,66731.0,0.01]
[1722448989331,0.07476412,66738.0,66733.0,0.01]
[1722448989553,0.449545,66734.0,66733.0,0.01]
[1722448989767,0.149848,66734.0,66733.0,0.01]
[1722448989983,0.449524,66737.0,66736.0,0.01]
[1722448990183,0.449524,66737.0,66725.0,0.30272998]
[1722448990184,0.149838,66739.0,66738.0,0.01]
[1722448990392,0.00998835,66759.0,66743.0,0.01]
[1722448990393,0.449478,66744.0,66743.0,0.01]
[1722448990608,0.449453,66748.0,66747.0,0.01]
[1722448990840,0.149821,66746.0,66745.0,0.01]
[1722448991058,0.149839,66738.0,66737.0,0.01]
[1722448991257,0.07476412,66749.0,66740.0,0.01]
[1722448991464,0.16431892,66756.0,66753.0,0.01]
[1722448991465,0.0895548,66754.0,66753.0,0.01]
[1722448991666,0.300418,66759.0,66741.0,0.15254844]
[1722448991667,0.449391,66757.0,66756.0,0.01]
[1722448992077,0.149808,66752.0,66751.0,0.01]
[1722448992281,0.00083,66759.0,66748.0,0.01]
[1722448992282,0.449443,66749.0,66748.0,0.01]
[1722448992511,0.07476412,66755.0,66740.0,0.01]
[1722448992708,0.07476412,66755.0,66723.0,0.1]
[1722448992709,0.149846,66735.0,66734.0,0.01]
[1722448992950,0.449551,66733.0,66732.0,0.01]
[1722448993498,0.07476412,66741.0,66726.0,0.0015542]
[1722448993499,0.149864,66727.0,66726.0,0.0015542]
[1722448993748,0.07476412,66727.0,66724.0,0.01]
[1722448993950,0.749377,66722.0,66721.0,0.01]
[1722448994150,0.11221133,66727.0,66715.0,0.0015542]
[1722448994151,0.29976,66720.0,66717.0,0.01]
[1722448994326,0.449653,66718.0,66717.0,0.01]
[1722448994531,0.449653,66718.0,66705.0,0.0015542]
[1722448994532,0.0749413,66718.0,66705.0,0.0015542]
[1722448994742,0.07476412,66719.0,66713.0,0.01]
[1722448994743,0.299787,66714.0,66713.0,0.01]
[1722448994962,0.749522,66709.0,66708.0,0.01]
[1722448995392,0.149904,66709.0,66708.0,0.01]
[1722448995616,0.149904,66709.0,66701.0,0.149922]
[1722448995617,0.299791,66713.0,66711.0,0.01]
[1722448995747,0.07476412,66719.0,66711.0,0.01]
[1722448995962,0.07476412,66719.0,66688.0,0.001]
[1722448995963,0.149916,66704.0,66703.0,0.0015542]
[1722448996161,0.449713,66709.0,66708.0,0.01]
[1722448996361,0.004,66709.0,66708.0,0.01]
[1722448996775,0.53403052,66726.0,66715.0,0.01]
[1722448996776,0.149889,66716.0,66715.0,0.01]
[1722448996978,0.1,66726.0,66709.0,0.01]
[1722448996979,0.014,66719.0,66709.0,0.01]
[1722448997201,0.449694,66712.0,66711.0,0.01]
[1722448997412,0.299788,66714.0,66709.0,0.01]
[1722448997626,0.155904,66709.0,66708.0,0.01]
[1722448997831,0.006,66709.0,66708.0,0.01]
[1722448998024,0.006,66709.0,66708.0,0.30945872]
[1722448998277,0.006,66709.0,66708.0,0.19065301]
[1722448998449,0.155904,66709.0,66708.0,0.15955172]
[1722448998683,0.455713,66709.0,66708.0,0.01]
[1722448998877,0.449713,66709.0,66708.0,0.01]
[1722448999049,0.149904,66709.0,66708.0,0.01]
[1722448999256,0.52447712,66709.0,66708.0,0.01]
[1722448999452,0.54799132,66709.0,66708.0,0.01]
[1722448999851,0.0295142,66709.0,66708.0,0.01]
[1722449000054,0.149904,66709.0,66708.0,0.01]
[1722449000256,0.07476412,66718.0,66705.0,0.01]
[1722449000257,0.299814,66708.0,66705.0,0.01]
[1722449000460,0.299776,66717.0,66690.0,0.0015542]
[1722449000461,0.749612,66701.0,66700.0,0.01]
[1722449000799,0.749602,66702.0,66701.0,0.01]
[1722449001018,0.449775,66700.0,66699.0,0.01]
[1722449001218,0.149925,66700.0,66699.0,0.01]
[1722449001547,0.299804,66711.0,66692.0,0.14955172]
[1722449001548,0.449767,66701.0,66700.0,0.01]
[1722449001750,0.149922,66701.0,66700.0,0.01]
[1722449001903,0.2998,66712.0,66700.0,0.01]
[1722449001904,0.11204408,66713.0,66709.0,0.01]
[1722449002103,0.1499,66711.0,66710.0,0.01]
[1722449002307,0.1344529,66721.0,66701.0,0.15254993]
[1722449002308,0.1,66721.0,66713.0,0.01]
[1722449002501,0.44968,66714.0,66713.0,0.01]
[1722449002691,0.449727,66707.0,66706.0,0.01]
[1722449002872,0.449734,66706.0,66705.0,0.01]
[1722449003075,0.299805,66710.0,66709.0,0.01]
[1722449003278,0.749512,66710.0,66709.0,0.01]
[1722449003728,0.449727,66707.0,66706.0,0.01]
[1722449004243,0.149911,66706.0,66705.0,0.01]
[1722449004442,0.299806,66710.0,66709.0,0.01]
[1722449004443,0.599612,66710.0,66709.0,0.01]
[1722449004643,0.763514,66710.0,66709.0,0.01]
[1722449004847,0.763514,66710.0,66701.0,0.14955172]
[1722449004848,0.149911,66706.0,66705.0,0.01]
[1722449005057,0.449734,66706.0,66705.0,0.01]
[1722449005257,0.14992,66702.0,66701.0,0.01]
[1722449005488,0.449761,66702.0,66701.0,0.01]
[1722449005657,0.149919,66703.0,66702.0,0.01]
[1722449006038,0.014,66710.0,66689.0,0.309182]
[1722449006039,0.449829,66692.0,66689.0,0.009284]
[1722449006252,0.749715,66692.0,66689.0,0.009284]
[1722449006468,0.749715,66692.0,66691.0,0.0105]
[1722449006675,0.449829,66692.0,66691.0,0.0105]
[1722449006845,0.47334959,66692.0,66691.0,0.0105]
[1722449007080,0.77323559,66692.0,66691.0,0.0105]
[1722449007286,0.449829,66692.0,66691.0,0.0105]
[1722449007490,0.449829,66692.0,66691.0,0.0005]
[1722449007686,0.749715,66692.0,66691.0,0.0005]
[1722449007889,1.049601,66692.0,66691.0,0.0005]
[1722449008476,0.749715,66692.0,66691.0,0.0105]
[1722449009114,0.752715,66692.0,66691.0,0.0105]
[1722449009316,0.003,66692.0,66691.0,0.0105]
[1722449009543,0.749715,66692.0,66691.0,0.0105]
[1722449009790,0.763715,66692.0,66691.0,0.0105]
[1722449009997,0.749715,66692.0,66691.0,0.0105]
[1722449010204,0.47335132,66692.0,66691.0,0.0105]
[1722449010373,0.48435132,66692.0,66691.0,0.0105]
[1722449010575,0.89264685,66692.0,66691.0,0.0005]
[1722449010796,0.78423732,66692.0,66691.0,0.0005]
[1722449011232,0.78423732,66692.0,66691.0,0.160445]
[1722449011233,0.011,66692.0,66691.0,0.160445]
[1722449011449,0.011,66692.0,66691.0,0.93577523]
[1722449011585,0.011,66692.0,66691.0,1.33027115]
[1722449012182,0.74838472,66712.0,66709.0,0.01]
[1722449012183,0.44858472,66712.0,66709.0,0.01]
[1722449012387,0.149902,66710.0,66709.0,0.01]
[1722449012591,0.449707,66710.0,66709.0,0.01]
[1722449012799,0.449688,66713.0,66712.0,0.01]
[1722449013208,0.11193673,66729.0,66712.0,0.01]
[1722449013209,0.18670085,66734.0,66721.0,0.01]
[1722449013415,0.299702,66733.0,66728.0,0.01]
[1722449013613,0.14985,66733.0,66732.0,0.01]
[1722449013859,0.299619,66752.0,66737.0,0.01]
[1722449013860,0.149839,66738.0,66737.0,0.01]
[1722449014053,0.18670085,66748.0,66737.0,0.01]
[1722449014054,0.299671,66740.0,66737.0,0.01]
[1722449014401,0.299671,66740.0,66725.0,0.0029972]
[1722449014402,0.74931,66728.0,66727.0,0.01]
[1722449014608,0.13469692,66739.0,66732.0,0.01]
[1722449014609,0.07476412,66739.0,66732.0,0.01]
[1722449014814,0.449551,66733.0,66732.0,0.01]
[1722449014987,0.0449551,66733.0,66720.0,0.01]
[1722449015201,0.449632,66721.0,66720.0,0.01]
[1722449015558,0.449659,66717.0,66716.0,0.01]
[1722449015967,0.449659,66717.0,66698.0,0.1]
[1722449015968,0.07476412,66724.0,66714.0,0.01]
[1722449016172,0.1499,66711.0,66710.0,0.01]
[1722449016370,0.149902,66710.0,66709.0,0.01]
[1722449016570,0.449707,66710.0,66709.0,0.01]
[1722449016710,0.449721,66708.0,66707.0,0.01]
[1722449016908,0.749535,66708.0,66707.0,0.01]
[1722449017154,0.449721,66708.0,66707.0,0.01]
[1722449017330,0.149907,66708.0,66707.0,0.01]
[1722449017536,0.299773,66717.0,66711.0,0.01]
[1722449017737,0.014,66721.0,66719.0,0.01]
[1722449017937,0.449641,66720.0,66719.0,0.01]
[1722449018339,0.449641,66720.0,66697.0,0.14955172]
[1722449018340,0.014,66721.0,66720.0,0.01]
[1722449018541,0.014,66721.0,66720.0,0.30943172]
[1722449018768,0.014,66721.0,66720.0,0.15955172]
[1722449018973,0.03750986,66721.0,66720.0,0.15955172]
[1722449019186,0.02350986,66721.0,66720.0,0.15955172]
[1722449019373,0.47314186,66721.0,66720.0,0.01]
[1722449019968,0.47414186,66721.0,66720.0,0.018]
[1722449020373,0.149877,66721.0,66720.0,0.01]
[1722449020774,0.299747,66723.0,66720.0,0.01]
[1722449020995,0.149863,66728.0,66727.0,0.01]
[1722449021182,0.149866,66726.0,66725.0,0.01]
[1722449021392,0.449613,66724.0,66723.0,0.01]
[1722449021597,0.749355,66724.0,66723.0,0.01]
[1722449021972,0.149884,66718.0,66717.0,0.01]
[1722449022197,0.749422,66718.0,66717.0,0.01]
[1722449023235,0.07476412,66731.0,66730.0,0.449572]
[1722449023439,0.13421902,66740.0,66730.0,0.449572]
[1722449023440,0.41148418,66748.0,66743.0,0.01]
[1722449023766,0.07476412,66754.0,66738.0,0.01]
[1722449023892,0.07476412,66754.0,66719.0,0.299763]
[1722449023893,0.299701,66733.0,66732.0,0.01]
[1722449024092,0.07476412,66747.0,66728.0,0.01]
[1722449024093,0.07476412,66740.0,66728.0,0.01]
[1722449024298,0.07476412,66740.0,66727.0,0.01]
[1722449024299,0.149862,66728.0,66727.0,0.01]
[1722449024498,0.74931,66728.0,66727.0,0.01]
[1722449024698,0.449626,66722.0,66721.0,0.01]
[1722449024947,0.449626,66722.0,66708.0,0.0015542]
[1722449024948,0.449653,66718.0,66717.0,0.011]
[1722449025149,0.449686,66713.0,66712.0,0.01]
[1722449025352,0.07476412,66724.0,66707.0,0.01]
[1722449025353,0.449721,66708.0,66707.0,0.01]
[1722449025503,0.07476412,66724.0,66695.0,0.14955172]
[1722449025504,0.07476412,66711.0,66706.0,0.01]
[1722449025702,0.007,66728.0,66716.0,0.01]
[1722449025703,0.1,66726.0,66716.0,0.01]
[1722449025949,0.11882524,66728.0,66720.0,0.01]
[1722449025950,0.449632,66721.0,66720.0,0.01]